[Event "Swedish Chess Championship 2019: Minior-SM"]
[Site "Stiga Sports Arena, Arenatorget 1, Eskilstuna, Sweden, Sweden"]
[Date "2019.07.13"]
[Round "8.1"]
[White "Falkevall, Axel"]
[Black "Morell, Ludvig"]
[Result "1-0"]
[TimeControl "90 minutes for 40 moves + 30 minutes for the rest of the game + 30 seconds per move from move one"]
[WhiteFideId "1735560"]
[BlackFideId "1736779"]
[WhiteElo "2067"]
[BlackElo "1744"]

1. e4 {[%emt 01:11:47]} c5 {[%clk 01:30:23]} {[%emt 00:00:24]} 2. c3 {[%clk
01:31:23]} {[%emt 00:00:07]} Nf6 {[%clk 01:30:38]} {[%emt 00:00:14]} 3. e5
{[%clk 01:31:43]} {[%emt 00:00:10]} Nd5 {[%clk 01:31:03]} {[%emt 00:00:06]} 4.
d4 {[%clk 01:32:08]} {[%emt 00:00:04]} cxd4 {[%clk 01:31:29]} {[%emt 00:00:04]}
5. Nf3 {[%clk 01:32:31]} {[%emt 00:00:08]} Nc6 {[%clk 01:31:53]} {[%emt
00:00:06]} 6. cxd4 {[%clk 01:32:53]} {[%emt 00:00:08]} d6 {[%clk 01:32:18]}
{[%emt 00:00:05]} 7. Bc4 {[%clk 01:33:14]} {[%emt 00:00:09]} e6 {[%clk
01:32:42]} {[%emt 00:00:05]} 8. O-O {[%clk 01:33:32]} {[%emt 00:00:11]} Be7
{[%clk 01:33:02]} {[%emt 00:00:10]} 9. Qe2 {[%clk 01:33:50]} {[%emt 00:00:12]}
O-O {[%clk 01:32:52]} {[%emt 00:00:40]} 10. Nc3 {[%clk 01:34:07]} {[%emt
00:00:13]} dxe5 {[%clk 01:31:43]} {[%emt 00:01:38]} 11. dxe5 {[%clk 01:33:35]}
{[%emt 00:01:01]} Nxc3 {[%clk 01:30:56]} {[%emt 00:01:18]} 12. bxc3 {[%clk
01:33:57]} {[%emt 00:00:08]} b6 {[%clk 01:30:14]} {[%emt 00:01:11]} 13. Qe4
{[%clk 01:31:20]} {[%emt 00:03:07]} Bb7 {[%clk 01:29:50]} {[%emt 00:00:55]} 14.
Bd3 {[%clk 01:31:36]} {[%emt 00:00:13]} g6 {[%clk 01:29:24]} {[%emt 00:00:56]}
15. Bh6 {[%clk 01:29:59]} {[%emt 00:02:07]} Re8 {[%clk 01:27:04]} {[%emt
00:02:50]} 16. Rad1 {[%clk 01:25:36]} {[%emt 00:04:52]} Qc7 {[%clk 01:19:45]}
{[%emt 00:07:49]} 17. Qf4 {[%clk 01:20:43]} {[%emt 00:05:23]} f5 {[%clk
01:12:32]} {[%emt 00:07:43]} 18. Bc4 {[%clk 01:16:57]} {[%emt 00:04:16]} Nd8
{[%clk 01:05:39]} {[%emt 00:07:23]} 19. Rd4 {[%clk 01:05:23]} {[%emt 00:12:03]}
Bxf3 {[%clk 01:00:25]} {[%emt 00:05:45]} 20. Qxf3 {[%clk 00:53:33]} {[%emt
00:12:20]} Nf7 {[%clk 00:48:43]} {[%emt 00:12:12]} 21. Bxe6 {[%clk 00:42:12]}
{[%emt 00:11:50]} Qxe5 {[%clk 00:44:38]} {[%emt 00:04:36]} 22. Bb3 {[%clk
00:25:40]} {[%emt 00:16:57]} Rad8 {[%clk 00:36:51]} {[%emt 00:08:22]} 23. Be3
{[%clk 00:19:35]} {[%emt 00:06:31]} Rxd4 {[%clk 00:12:19]} {[%emt 00:25:07]} 24.
Bxd4 {[%clk 00:19:45]} {[%emt 00:00:19]} Qc7 {[%clk 00:12:40]} {[%emt
00:00:09]} 25. Re1 {[%clk 00:12:58]} {[%emt 00:07:14]} Qd7 {[%emt 00:03:40]} 26.
Qe3 {[%clk 00:10:30]} {[%emt 00:02:50]} Qc6 {[%clk 00:05:16]} {[%emt 00:04:56]}
27. Qe5 {[%clk 00:10:28]} {[%emt 00:00:28]} 1-0

[Event "Swedish Chess Championship 2019: Minior-SM"]
[Site "Stiga Sports Arena, Arenatorget 1, Eskilstuna, Sweden, Sweden"]
[Date "2019.07.13"]
[Round "8.2"]
[White "Fridman, Arvid"]
[Black "Seo, Jung Hyun"]
[Result "0-1"]
[TimeControl "90 minutes for 40 moves + 30 minutes for the rest of the game + 30 seconds per move from move one"]
[WhiteFideId "1758632"]
[BlackFideId "1735667"]
[WhiteElo "1326"]
[BlackElo "1575"]

1. d4 {[%clk 01:30:58]} {[%emt 00:00:01]} e6 {[%clk 01:30:59]} {[%emt
00:00:01]} 2. c4 {[%clk 01:31:11]} {[%emt 00:00:17]} d5 {[%clk 01:31:21]}
{[%emt 00:00:08]} 3. Nc3 {[%clk 01:31:16]} {[%emt 00:00:26]} Nf6 {[%clk
01:31:47]} {[%emt 00:00:04]} 4. Bf4 {[%clk 01:31:20]} {[%emt 00:00:26]} c6
{[%clk 01:32:02]} {[%emt 00:00:15]} 5. c5 {[%clk 01:31:31]} {[%emt 00:00:19]}
Nbd7 {[%clk 01:31:42]} {[%emt 00:00:50]} 6. Nf3 {[%clk 01:27:57]} {[%emt
00:04:04]} a5 {[%clk 01:30:52]} {[%emt 00:01:20]} 7. a3 {[%clk 01:21:40]}
{[%emt 00:06:48]} b5 {[%clk 01:27:37]} {[%emt 00:03:45]} 8. b4 {[%clk
01:20:10]} {[%emt 00:02:00]} Be7 {[%clk 01:27:16]} {[%emt 00:00:50]} 9. h3
{[%clk 01:16:32]} {[%emt 00:04:08]} O-O {[%clk 01:25:08]} {[%emt 00:02:39]} 10.
e3 {[%clk 01:15:51]} {[%emt 00:01:12]} Ne4 {[%clk 01:23:53]} {[%emt 00:01:44]}
11. Nxe4 {[%clk 01:12:59]} {[%emt 00:03:22]} dxe4 {[%clk 01:24:20]} {[%emt
00:00:03]} 12. Nd2 {[%clk 01:12:32]} {[%emt 00:00:57]} f5 {[%clk 01:24:01]}
{[%emt 00:00:48]} 13. Nb3 {[%clk 01:09:00]} {[%emt 00:04:02]} axb4 {[%clk
01:22:44]} {[%emt 00:01:48]} 14. axb4 {[%clk 01:08:16]} {[%emt 00:01:14]} Rxa1
{[%clk 01:23:10]} {[%emt 00:00:04]} 15. Qxa1 {[%clk 01:08:37]} {[%emt
00:00:09]} Nf6 {[%clk 01:23:15]} {[%emt 00:00:24]} 16. Na5 {[%clk 01:01:26]}
{[%emt 00:07:41]} Qe8 {[%clk 01:21:51]} {[%emt 00:01:54]} 17. Be5 {[%clk
00:57:08]} {[%emt 00:04:49]} Nd5 {[%clk 01:21:31]} {[%emt 00:00:50]} 18. Qa3
{[%clk 00:50:55]} {[%emt 00:06:43]} Bd8 {[%clk 01:12:03]} {[%emt 00:09:58]} 19.
Be2 {[%clk 00:46:41]} {[%emt 00:04:44]} Bc7 {[%clk 01:11:19]} {[%emt 00:01:13]}
20. O-O {[%clk 00:44:24]} {[%emt 00:02:47]} Bxe5 {[%clk 01:07:02]} {[%emt
00:04:47]} 21. dxe5 {[%clk 00:44:51]} {[%emt 00:00:03]} f4 {[%clk 01:07:13]}
{[%emt 00:00:19]} 22. exf4 {[%clk 00:34:57]} {[%emt 00:10:25]} Nxf4 {[%clk
01:07:31]} {[%emt 00:00:11]} 23. Re1 {[%clk 00:34:45]} {[%emt 00:00:42]} Qf7
{[%clk 01:06:23]} {[%emt 00:01:38]} 24. Kh1 {[%clk 00:31:02]} {[%emt 00:04:13]}
Nxg2 {[%clk 01:06:11]} {[%emt 00:00:42]} 25. Rg1 {[%clk 00:28:02]} {[%emt
00:03:30]} Nf4 {[%clk 01:06:02]} {[%emt 00:00:39]} 26. Bf1 {[%clk 00:26:43]}
{[%emt 00:01:50]} Nd3 {[%clk 01:00:46]} {[%emt 00:05:47]} 27. Bxd3 {[%clk
00:24:21]} {[%emt 00:02:51]} Qf3+ {[%clk 01:01:09]} {[%emt 00:00:07]} 28. Rg2
{[%clk 00:23:17]} {[%emt 00:01:35]} exd3 {[%clk 00:59:38]} {[%emt 00:02:00]} 29.
Qc3 {[%clk 00:17:03]} {[%emt 00:06:44]} Qd5 {[%clk 00:54:28]} {[%emt 00:05:40]}
30. Qd2 {[%clk 00:15:46]} {[%emt 00:01:47]} Bd7 {[%clk 00:52:02]} {[%emt
00:02:56]} 31. Qg5 {[%clk 00:14:21]} {[%emt 00:01:55]} g6 {[%clk 00:50:12]}
{[%emt 00:02:20]} 32. Qd2 {[%clk 00:13:29]} {[%emt 00:01:22]} Be8 {[%clk
00:48:53]} {[%emt 00:01:50]} 33. Nb7 {[%clk 00:11:51]} {[%emt 00:02:08]} Qf3
{[%clk 00:43:34]} {[%emt 00:05:48]} 34. Nd6 {[%clk 00:10:09]} {[%emt 00:02:12]}
Qe2 {[%clk 00:42:24]} {[%emt 00:01:40]} 35. Qh6 {[%clk 00:07:13]} {[%emt
00:03:26]} d2 {[%clk 00:41:30]} 0-1

[Event "Swedish Chess Championship 2019: Minior-SM"]
[Site "Stiga Sports Arena, Arenatorget 1, Eskilstuna, Sweden, Sweden"]
[Date "2019.07.13"]
[Round "8.3"]
[White "Strom-Engdahl, Alexander"]
[Black "Johansson-Ohman, Linnea"]
[Result "1/2-1/2"]
[TimeControl "90 minutes for 40 moves + 30 minutes for the rest of the game + 30 seconds per move from move one"]
[WhiteFideId "1741586"]
[BlackFideId "1737260"]
[WhiteElo "1866"]
[BlackElo "1529"]

1. c4 {[%clk 01:30:28]} {[%emt 00:00:32]} c6 {[%clk 01:30:42]} {[%emt
00:00:19]} 2. g3 {[%clk 01:26:35]} {[%emt 00:04:22]} d5 {[%clk 01:30:25]}
{[%emt 00:00:47]} 3. Bg2 {[%clk 01:26:11]} {[%emt 00:00:54]} Nf6 {[%clk
01:29:36]} {[%emt 00:01:20]} 4. Nf3 {[%clk 01:24:24]} {[%emt 00:02:17]} e6
{[%clk 01:18:11]} {[%emt 00:11:55]} 5. Qc2 {[%clk 01:18:54]} {[%emt 00:05:59]}
Bd6 {[%clk 01:05:22]} {[%emt 00:13:21]} 6. d4 {[%clk 01:15:54]} {[%emt
00:03:29]} Nbd7 {[%clk 01:01:50]} {[%emt 00:04:02]} 7. cxd5 {[%clk 01:12:29]}
{[%emt 00:03:54]} exd5 {[%clk 01:00:27]} {[%emt 00:01:55]} 8. Nc3 {[%clk
01:12:09]} {[%emt 00:00:50]} O-O {[%clk 00:57:32]} {[%emt 00:03:25]} 9. O-O
{[%clk 01:11:31]} {[%emt 00:01:08]} Re8 {[%clk 00:56:51]} {[%emt 00:01:11]} 10.
Re1 {[%clk 01:10:31]} {[%emt 00:01:29]} Nb6 {[%clk 00:53:43]} {[%emt 00:03:39]}
11. Bg5 {[%clk 01:08:07]} {[%emt 00:02:52]} h6 {[%clk 00:49:37]} {[%emt
00:04:38]} 12. Bxf6 {[%clk 01:07:42]} {[%emt 00:00:55]} Qxf6 {[%clk 00:50:02]}
{[%emt 00:00:06]} 13. e4 {[%clk 01:08:03]} {[%emt 00:00:08]} Qg6 {[%clk
00:41:44]} {[%emt 00:08:49]} 14. Nh4 {[%clk 00:58:06]} {[%emt 00:10:28]} Qh7
{[%clk 00:40:57]} {[%emt 00:01:17]} 15. Bf1 {[%clk 00:46:28]} {[%emt 00:12:07]}
g5 {[%clk 00:23:15]} {[%emt 00:18:12]} 16. Ng2 {[%clk 00:46:09]} {[%emt
00:00:48]} Bd7 {[%clk 00:16:15]} {[%emt 00:07:31]} 17. Bd3 {[%clk 00:46:10]}
{[%emt 00:00:29]} Qg7 {[%clk 00:16:07]} {[%emt 00:00:38]} 18. e5 {[%clk
00:45:06]} {[%emt 00:01:33]} Bb4 {[%clk 00:12:54]} {[%emt 00:03:43]} 19. a3
{[%clk 00:41:03]} {[%emt 00:04:34]} Bxc3 {[%clk 00:11:15]} {[%emt 00:02:09]} 20.
bxc3 {[%clk 00:41:26]} {[%emt 00:00:06]} Nc8 {[%clk 00:10:36]} {[%emt
00:01:09]} 21. Kh1 {[%clk 00:38:54]} {[%emt 00:03:01]} Ne7 {[%clk 00:10:33]}
{[%emt 00:00:34]} 22. f4 {[%clk 00:39:09]} {[%emt 00:00:15]} Bh3 {[%clk
00:03:49]} {[%emt 00:07:14]} 23. Ne3 {[%clk 00:36:23]} {[%emt 00:03:17]} f6
{[%clk 00:01:54]} {[%emt 00:02:24]} 24. Bf1 {[%clk 00:29:12]} {[%emt 00:07:38]}
Bxf1 {[%clk 00:00:43]} {[%emt 00:01:44]} 25. Rxf1 {[%clk 00:29:34]} {[%emt
00:00:07]} Rf8 {[%clk 00:00:36]} {[%emt 00:00:38]} 26. exf6 {[%clk 00:26:17]}
{[%emt 00:03:47]} Rxf6 {[%clk 00:00:42]} {[%emt 00:00:23]} 27. f5 {[%clk
00:26:35]} {[%emt 00:00:12]} Raf8 {[%clk 00:00:39]} {[%emt 00:00:34]} 28. g4
{[%clk 00:26:49]} {[%emt 00:00:16]} Qh7 {[%clk 00:00:34]} {[%emt 00:00:35]} 29.
Kg2 {[%clk 00:26:56]} {[%emt 00:00:22]} h5 {[%clk 00:00:41]} {[%emt 00:00:23]}
30. h3 {[%clk 00:27:23]} {[%emt 00:00:03]} Rh6 {[%clk 00:00:41]} {[%emt
00:00:30]} 31. Rh1 {[%clk 00:27:38]} {[%emt 00:00:15]} Kf7 {[%clk 00:00:35]}
{[%emt 00:00:37]} 32. Raf1 {[%clk 00:21:05]} {[%emt 00:07:02]} Rh8 {[%clk
00:00:35]} {[%emt 00:00:30]} 33. Qd3 {[%clk 00:21:16]} {[%emt 00:00:18]} Ng8
{[%clk 00:00:37]} {[%emt 00:00:29]} 34. gxh5 {[%clk 00:18:49]} {[%emt
00:02:57]} Rxh5 {[%clk 00:01:05]} {[%emt 00:00:02]} 35. Ng4 {[%clk 00:17:48]}
{[%emt 00:01:31]} Nf6 {[%clk 00:00:39]} {[%emt 00:00:57]} 36. Nxf6 {[%clk
00:16:46]} {[%emt 00:01:32]} Kxf6 {[%clk 00:01:07]} {[%emt 00:00:02]} 37. Qe3
{[%clk 00:17:15]} {[%emt 00:00:02]} Qe7 {[%clk 00:00:42]} {[%emt 00:00:55]} 38.
Qxe7+ {[%clk 00:12:53]} {[%emt 00:04:52]} 1/2-1/2

[Event "Swedish Chess Championship 2019: Minior-SM"]
[Site "Stiga Sports Arena, Arenatorget 1, Eskilstuna, Sweden, Sweden"]
[Date "2019.07.13"]
[Round "8.4"]
[White "Anfalt, Erik"]
[Black "Tran, Alva Ling"]
[Result "0-1"]
[TimeControl "90 minutes for 40 moves + 30 minutes for the rest of the game + 30 seconds per move from move one"]
[WhiteFideId "1753533"]
[BlackFideId "1753223"]
[WhiteElo "1511"]
[BlackElo "1712"]

1. e4 {[%clk 01:30:59]} c5 {[%clk 01:30:48]} {[%emt 00:00:13]} 2. Nc3 {[%clk
01:31:21]} {[%emt 00:00:08]} Nc6 {[%clk 01:30:56]} {[%emt 00:00:21]} 3. f4
{[%clk 01:31:39]} {[%emt 00:00:12]} g6 {[%clk 01:31:04]} {[%emt 00:00:23]} 4.
Nf3 {[%clk 01:31:56]} {[%emt 00:00:12]} Bg7 {[%clk 01:31:20]} {[%emt 00:00:14]}
5. Bb5 {[%clk 01:32:24]} {[%emt 00:00:03]} Nd4 {[%clk 01:30:59]} {[%emt
00:00:51]} 6. O-O {[%clk 01:32:02]} {[%emt 00:00:52]} a6 {[%clk 01:30:05]}
{[%emt 00:01:25]} 7. Bc4 {[%clk 01:32:09]} {[%emt 00:00:24]} b5 {[%clk
01:29:53]} {[%emt 00:00:41]} 8. Bd5 {[%clk 01:32:03]} {[%emt 00:00:36]} Rb8
{[%clk 01:28:52]} {[%emt 00:01:30]} 9. e5 {[%clk 01:29:54]} {[%emt 00:02:39]}
e6 {[%clk 01:22:40]} {[%emt 00:06:44]} 10. Be4 {[%clk 01:30:18]} {[%emt
00:00:05]} d5 {[%clk 01:18:05]} {[%emt 00:05:04]} 11. exd6 {[%clk 01:28:13]}
{[%emt 00:02:36]} Qxd6 {[%clk 01:16:08]} {[%emt 00:02:28]} 12. Nxd4 {[%clk
01:25:00]} {[%emt 00:03:43]} Qxd4+ {[%clk 01:15:50]} {[%emt 00:00:47]} 13. Kh1
{[%clk 01:23:52]} {[%emt 00:01:37]} Ne7 {[%clk 01:13:18]} {[%emt 00:03:03]} 14.
d3 {[%clk 01:23:14]} {[%emt 00:01:08]} O-O {[%clk 01:11:47]} {[%emt 00:02:01]}
15. Qe1 {[%clk 01:21:02]} {[%emt 00:02:42]} Rd8 {[%clk 01:03:14]} {[%emt
00:09:04]} 16. Be3 {[%clk 01:16:28]} {[%emt 00:05:03]} Qd6 {[%clk 01:02:26]}
{[%emt 00:01:18]} 17. Qf2 {[%clk 01:15:18]} {[%emt 00:01:41]} Bd4 {[%clk
01:01:25]} {[%emt 00:01:30]} 18. Bxd4 {[%clk 01:13:58]} {[%emt 00:01:50]} cxd4
{[%clk 01:01:05]} {[%emt 00:00:51]} 19. Ne2 {[%clk 01:14:25]} {[%emt 00:00:03]}
Bb7 {[%clk 00:59:20]} {[%emt 00:02:15]} 20. Ng3 {[%clk 01:09:50]} {[%emt
00:05:05]} Nf5 {[%clk 00:50:20]} {[%emt 00:09:30]} 21. Nxf5 {[%clk 01:08:06]}
{[%emt 00:02:14]} exf5 {[%clk 00:46:18]} {[%emt 00:04:32]} 22. Bxb7 {[%clk
01:08:05]} {[%emt 00:00:31]} Rxb7 {[%clk 00:46:40]} {[%emt 00:00:09]} 23. Rfe1
{[%clk 01:08:19]} {[%emt 00:00:15]} Qb4 {[%clk 00:41:05]} {[%emt 00:06:05]} 24.
Rab1 {[%clk 01:06:31]} {[%emt 00:02:17]} Rc7 {[%clk 00:37:44]} {[%emt
00:03:52]} 25. Re2 {[%clk 01:06:25]} {[%emt 00:00:35]} Rdc8 {[%clk 00:35:36]}
{[%emt 00:02:38]} 26. a3 {[%clk 01:03:39]} {[%emt 00:03:16]} Qa4 {[%clk
00:33:32]} {[%emt 00:02:34]} 27. Rc1 {[%clk 00:59:35]} {[%emt 00:04:34]} Rd7
{[%clk 00:26:40]} {[%emt 00:07:23]} 28. Qe1 {[%clk 00:57:22]} {[%emt 00:02:43]}
Kg7 {[%clk 00:23:41]} {[%emt 00:03:29]} 29. c3 {[%clk 00:56:38]} {[%emt
00:01:14]} dxc3 {[%clk 00:19:35]} {[%emt 00:04:36]} 30. Rxc3 {[%clk 00:57:05]}
{[%emt 00:00:03]} Rxc3 {[%clk 00:19:05]} {[%emt 00:01:00]} 31. Qxc3+ {[%clk
00:57:28]} {[%emt 00:00:07]} Qd4 {[%clk 00:19:04]} {[%emt 00:00:28]} 32. Rd2
{[%clk 00:54:23]} {[%emt 00:03:38]} Qxc3 {[%clk 00:11:09]} {[%emt 00:08:25]} 33.
bxc3 {[%clk 00:54:51]} {[%emt 00:00:02]} Rc7 {[%clk 00:11:29]} {[%emt
00:00:10]} 34. Rc2 {[%clk 00:54:44]} {[%emt 00:00:37]} a5 {[%clk 00:08:58]}
{[%emt 00:03:01]} 35. c4 {[%clk 00:52:33]} {[%emt 00:02:41]} Kf6 {[%clk
00:08:10]} {[%emt 00:01:18]} 36. g3 {[%clk 00:52:26]} {[%emt 00:00:37]} Ke6
{[%clk 00:07:35]} {[%emt 00:01:05]} 37. Kg2 {[%clk 00:52:04]} {[%emt 00:00:51]}
Kd6 {[%clk 00:06:35]} {[%emt 00:01:31]} 38. Kf2 {[%clk 00:52:11]} {[%emt
00:00:21]} bxc4 {[%clk 00:04:55]} {[%emt 00:02:11]} 39. dxc4 {[%clk 00:52:40]}
{[%emt 00:00:01]} Kc6 {[%clk 00:01:32]} {[%emt 00:03:53]} 40. Ke3 {[%clk
00:50:59]} {[%emt 00:02:10]} Rb7 {[%clk 00:01:30]} {[%emt 00:00:33]} 41. Rc3
{[%clk 00:49:46]} {[%emt 00:01:43]} Kc5 {[%clk 00:01:38]} {[%emt 00:00:21]} 42.
h4 {[%clk 00:45:35]} {[%emt 00:04:41]} a4 {[%clk 00:27:38]} {[%emt 00:04:30]}
43. Kd3 {[%clk 01:02:11]} {[%emt 00:13:54]} Rd7+ {[%clk 00:18:45]} {[%emt
00:09:24]} 44. Ke3 {[%clk 00:59:37]} {[%emt 00:03:03]} Rd4 {[%clk 00:16:14]}
{[%emt 00:03:01]} 45. Ke2 {[%clk 01:00:00]} {[%emt 00:00:07]} Re4+ {[%clk
00:14:04]} {[%emt 00:02:41]} 46. Kd2 {[%clk 00:59:26]} {[%emt 00:01:03]} h5
{[%clk 00:13:14]} {[%emt 00:01:20]} 47. Kd3 {[%clk 00:45:32]} {[%emt 00:14:25]}
Re1 {[%clk 00:13:11]} {[%emt 00:00:33]} 48. Kd2 {[%clk 00:43:10]} {[%emt
00:02:51]} Rg1 {[%clk 00:12:32]} {[%emt 00:01:09]} 49. Ke2 {[%clk 00:37:16]}
{[%emt 00:06:24]} Kd4 {[%clk 00:11:14]} {[%emt 00:01:48]} 50. Rc2 {[%clk
00:37:36]} {[%emt 00:00:09]} Rg2+ {[%clk 00:11:14]} {[%emt 00:00:31]} 51. Kd1
{[%clk 00:38:03]} {[%emt 00:00:03]} Rxc2 {[%clk 00:10:33]} {[%emt 00:01:11]} 52.
Kxc2 {[%clk 00:38:32]} {[%emt 00:00:01]} Kxc4 {[%clk 00:10:56]} {[%emt
00:00:08]} 53. Kb2 {[%clk 00:38:40]} {[%emt 00:00:21]} Kd3 {[%clk 00:11:06]}
{[%emt 00:00:19]} 54. Ka2 {[%clk 00:38:13]} {[%emt 00:00:56]} Kc2 {[%clk
00:11:20]} {[%emt 00:00:17]} 55. Ka1 {[%clk 00:37:54]} {[%emt 00:00:49]} Kb3
{[%clk 00:11:44]} {[%emt 00:00:06]} 56. Kb1 {[%clk 00:38:23]} Kxa3 {[%clk
00:12:08]} {[%emt 00:00:07]} 57. Ka1 {[%clk 00:38:51]} {[%emt 00:00:01]} Kb3
{[%clk 00:12:31]} {[%emt 00:00:06]} 58. Kb1 {[%clk 00:39:06]} {[%emt 00:00:15]}
Kc3 {[%clk 00:12:56]} {[%emt 00:00:06]} 59. Ka2 {[%clk 00:39:35]} {[%emt
00:00:01]} Kd3 {[%clk 00:13:17]} {[%emt 00:00:09]} 0-1

[Event "Swedish Chess Championship 2019: Minior-SM"]
[Site "Stiga Sports Arena, Arenatorget 1, Eskilstuna, Sweden, Sweden"]
[Date "2019.07.13"]
[Round "8.5"]
[White "Enholm, Herman"]
[Black "Wikman, Viktor"]
[Result "0-1"]
[TimeControl "90 minutes for 40 moves + 30 minutes for the rest of the game + 30 seconds per move from move one"]
[WhiteFideId "1744500"]
[BlackFideId "1744720"]
[WhiteElo "1695"]
[BlackElo "1633"]

1. d4 {[%clk 01:30:44]} {[%emt 00:00:14]} Nf6 {[%clk 01:30:27]} {[%emt
00:00:33]} 2. c4 {[%clk 01:30:25]} {[%emt 00:00:49]} e6 {[%clk 01:30:50]}
{[%emt 00:00:08]} 3. Nc3 {[%clk 01:30:42]} {[%emt 00:00:13]} Bb4 {[%clk
01:31:13]} {[%emt 00:00:07]} 4. Qc2 {[%clk 01:30:44]} {[%emt 00:00:28]} Nc6
{[%clk 01:31:32]} {[%emt 00:00:12]} 5. Nf3 {[%clk 01:30:17]} {[%emt 00:00:55]}
d6 {[%clk 01:31:27]} {[%emt 00:00:36]} 6. e3 {[%clk 01:29:38]} {[%emt
00:01:07]} O-O {[%clk 01:28:48]} {[%emt 00:03:12]} 7. Bd3 {[%clk 01:25:38]}
{[%emt 00:04:29]} e5 {[%clk 01:26:28]} {[%emt 00:02:50]} 8. d5 {[%clk
01:23:33]} {[%emt 00:02:34]} Nb8 {[%clk 01:25:56]} {[%emt 00:01:03]} 9. Bd2
{[%clk 01:19:59]} {[%emt 00:04:03]} Nbd7 {[%clk 01:19:03]} {[%emt 00:07:24]} 10.
a3 {[%clk 01:14:30]} {[%emt 00:05:58]} Bxc3 {[%clk 01:19:01]} {[%emt 00:00:33]}
11. Bxc3 {[%clk 01:14:26]} {[%emt 00:00:34]} Nc5 {[%clk 01:18:38]} {[%emt
00:00:53]} 12. e4 {[%clk 01:10:58]} {[%emt 00:03:57]} a5 {[%clk 01:16:52]}
{[%emt 00:02:17]} 13. b4 {[%clk 00:57:23]} {[%emt 00:14:03]} axb4 {[%clk
01:15:22]} {[%emt 00:02:02]} 14. axb4 {[%clk 00:57:05]} {[%emt 00:00:47]} Rxa1+
{[%clk 01:14:18]} {[%emt 00:01:34]} 15. Bxa1 {[%clk 00:57:19]} {[%emt
00:00:18]} Nxd3+ {[%clk 01:13:23]} {[%emt 00:01:24]} 16. Qxd3 {[%clk 00:57:38]}
{[%emt 00:00:10]} Nh5 {[%clk 01:11:56]} {[%emt 00:01:58]} 17. O-O {[%clk
00:46:45]} {[%emt 00:11:22]} Nf4 {[%clk 01:04:46]} {[%emt 00:07:41]} 18. Qe3
{[%clk 00:46:01]} {[%emt 00:01:14]} f5 {[%clk 01:00:28]} {[%emt 00:04:49]} 19.
exf5 {[%clk 00:40:13]} {[%emt 00:06:17]} Bxf5 {[%clk 00:45:38]} {[%emt
00:15:19]} 20. Bb2 {[%clk 00:31:50]} {[%emt 00:08:51]} Bd3 {[%clk 00:41:07]}
{[%emt 00:05:03]} 21. g3 {[%clk 00:10:19]} {[%emt 00:21:56]} Nh3+ {[%clk
00:37:37]} {[%emt 00:04:05]} 22. Kg2 {[%clk 00:10:22]} {[%emt 00:00:26]} Bxf1+
{[%clk 00:38:00]} {[%emt 00:00:07]} 23. Kxf1 {[%clk 00:10:40]} {[%emt
00:00:12]} Qf6 {[%clk 00:38:18]} {[%emt 00:00:13]} 24. Kg2 {[%clk 00:10:11]}
{[%emt 00:00:57]} Qf5 {[%clk 00:35:37]} {[%emt 00:03:13]} 25. c5 {[%clk
00:07:09]} {[%emt 00:03:32]} e4 {[%clk 00:33:42]} {[%emt 00:02:25]} 26. Nd4
{[%clk 00:06:17]} {[%emt 00:01:21]} Qxf2+ {[%clk 00:33:19]} {[%emt 00:00:53]}
27. Qxf2 {[%clk 00:06:35]} {[%emt 00:00:12]} Rxf2+ {[%clk 00:33:36]} {[%emt
00:00:13]} 28. Kxh3 {[%clk 00:06:50]} {[%emt 00:00:15]} Rxb2 {[%clk 00:33:34]}
{[%emt 00:00:32]} 29. Ne6 {[%clk 00:05:30]} {[%emt 00:01:51]} e3 {[%clk
00:28:23]} {[%emt 00:05:41]} 30. Nxc7 {[%clk 00:05:16]} {[%emt 00:00:44]} dxc5
{[%clk 00:28:41]} {[%emt 00:00:12]} 31. d6 {[%clk 00:04:53]} {[%emt 00:00:53]}
Rd2 {[%clk 00:28:30]} {[%emt 00:00:41]} 32. bxc5 {[%clk 00:04:08]} {[%emt
00:01:16]} e2 {[%clk 00:28:50]} 0-1